fUST/lending_fUST_20241102
["ID","MTS","AMOUNT","RATE_DAILY","PERIOD"]
[341179715,1730548244125,-500.0,0.00025878,2]
[341179716,1730548244135,-500.0,0.00025878,2]
[341179717,1730548244211,-500.0,0.00025878,2]
[341179718,1730548244236,-500.0,0.00025878,2]
[341179719,1730548244246,-500.0,0.00025878,2]
[341179720,1730548244255,-500.0,0.00025878,2]
[341179721,1730548244265,-500.0,0.00025878,2]
[341179722,1730548244274,-500.0,0.00025878,2]
[341179723,1730548244284,-500.0,0.00025878,2]
[341179724,1730548244294,-500.0,0.00025878,2]
[341179725,1730548244304,-500.0,0.00025878,2]
[341179726,1730548244314,-500.0,0.00025878,2]
[341179727,1730548244324,-500.0,0.00025878,2]
[341179728,1730548244334,-500.0,0.00025878,2]
[341179729,1730548244343,-500.0,0.00025878,2]
[341179730,1730548244353,-500.0,0.00025878,2]
[341179731,1730548244364,-500.0,0.00025878,2]
[341179732,1730548244374,-500.0,0.00025878,2]
[341179733,1730548244384,-500.0,0.00025878,2]
[341179734,1730548244394,-500.0,0.00025878,2]
[341179735,1730548244404,-500.0,0.00025878,2]
[341179736,1730548244414,-500.0,0.00025878,2]
[341179737,1730548244425,-500.0,0.00025878,2]
[341179738,1730548244435,-500.0,0.00025878,2]
[341179739,1730548244445,-500.0,0.00025878,2]
[341179740,1730548244454,-500.0,0.00025878,2]
[341179741,1730548244464,-500.0,0.00025878,2]
[341179742,1730548244473,-300.0,0.00025878,2]
[341179743,1730548244483,-300.0,0.00025878,2]
[341179744,1730548244492,-1485.8528732,0.00025878,2]
[341179745,1730548244502,-243.737982,0.00025879,7]
[341179746,1730548244511,-176.585372,0.00025879,7]
[341179747,1730548244521,-345.747877,0.00025879,7]
[341179748,1730548244530,-345.747877,0.00025879,7]
[341179749,1730548244539,-345.747877,0.00025879,7]
[341179750,1730548244550,-345.747877,0.00025879,7]
[341179751,1730548244560,-195.0010116,0.00025947,2]
[341179752,1730548244571,-329.35,0.00025988,3]
[341179753,1730548244582,-1262.5,0.00025988,3]
[341179754,1730548244591,-631.25,0.00025988,3]
[341179755,1730548244600,-315.63,0.00025988,3]
[341179756,1730548244609,-157.81,0.00025988,3]
[341179757,1730548244619,-473.48,0.00025988,3]
[341179758,1730548244628,-345.747877,0.00025988,7]
[341179759,1730548244638,-345.747877,0.00025988,7]
[341179760,1730548244647,-151.0,0.00025998,7]
[341179761,1730548244656,-360.243339,0.00025998,7]
[341179762,1730548244666,-360.243339,0.00025998,7]
[341179763,1730548244676,-151.0,0.00025998,7]
[341179764,1730548244686,-151.0,0.00025998,7]
[341179765,1730548244696,-151.0,0.00025998,7]
[341179766,1730548244705,-151.0,0.00025998,7]
[341179767,1730548244715,-151.0,0.00025998,7]
[341179768,1730548244724,-260.342858,0.00025998,7]
[341179769,1730548244734,-151.0,0.00025998,7]
[341179770,1730548244744,-151.0,0.00025998,7]
[341179771,1730548244754,-158.535963,0.00025998,7]
[341179772,1730548244766,-245.209384,0.00025998,7]
[341179773,1730548244777,-158.535963,0.00025998,7]
[341179774,1730548244787,-151.0,0.00025998,7]
[341179775,1730548244796,-151.0,0.00025998,7]
[341179776,1730548244806,-406.921018,0.00025998,7]
[341179777,1730548244816,-406.921018,0.00025998,7]
[341179778,1730548244826,-406.921018,0.00025998,7]
[341179779,1730548244835,-406.921018,0.00025998,7]
[341179780,1730548244844,-151.0,0.00025998,3]
[341179781,1730548244854,-151.0,0.00025998,3]
[341179782,1730548244864,-151.0,0.00025998,7]
[341179783,1730548244874,-151.0,0.00025998,7]
[341179784,1730548244884,-151.0,0.00025998,7]
[341179785,1730548244894,-1159.305272,0.00026049,2]
[341179786,1730548244904,-166.666666,0.00026231,2]
[341179787,1730548244913,-151.0,0.00026334,7]
[341179788,1730548244923,-360.243339,0.00026334,7]
[341179789,1730548244934,-360.243339,0.00026334,7]
[341179790,1730548244945,-158.535963,0.00026334,7]
[341179791,1730548244955,-158.535963,0.00026334,7]
[341179792,1730548244967,-5000.0,0.00026334,2]
[341179793,1730548244978,-3048.2357086,0.00026335,2]
[341179794,1730548244988,-166.666666,0.00026876,2]
[341179795,1730548244999,-329.48560076,0.00027141,2]
[341179796,1730548245008,-5000.0,0.0002724,2]
[341179797,1730548245018,-151.0,0.00027241,7]
[341179798,1730548245029,-151.0,0.00027241,7]
[341179799,1730548245038,-151.0,0.00027241,7]
[341179800,1730548245048,-178.859321,0.00027241,7]
[341179801,1730548245059,-406.921018,0.00027241,7]
[341179802,1730548245070,-406.921018,0.00027241,7]
[341179803,1730548245080,-151.0,0.00027241,3]
[341179804,1730548245090,-345.747877,0.00027241,7]
[341179805,1730548245100,-345.747877,0.00027241,7]
[341179806,1730548245109,-151.0,0.00027241,7]
[341179807,1730548245119,-151.0,0.00027241,7]
[341179808,1730548245129,-151.0,0.00027241,7]
[341179809,1730548245138,-500.0,0.00027242,2]
[341179810,1730548245148,-1000.0,0.00027242,2]
[341179811,1730548245157,-1000.0,0.00027242,2]
[341179812,1730548245167,-1000.0,0.00027242,2]
[341179813,1730548245176,-500.0,0.00027271,2]
[341179814,1730548245185,-201.70216091,0.00027271,2]
[341179815,1730548245195,-323.27610461,0.00027271,2]
[341179816,1730548245205,-309.17339377,0.00027271,2]
[341179817,1730548245215,-232.2109002,0.00027271,2]
[341179818,1730548245225,-395.60813699,0.00027271,2]
[341179819,1730548245238,-4630.29790329,0.00027272,2]
[341179820,1730548245248,-500.0,0.00027273,2]
[341179821,1730548245258,-260.70975657,0.00027273,2]
[341179822,1730548245267,-503.17625907,0.00027273,2]
[341179823,1730548245278,-502.73830547,0.00027273,2]
[341179824,1730548245288,-2525.0,0.00027358,3]
[341179825,1730548245298,-1262.5,0.00027358,3]
[341179826,1730548245310,-631.26,0.00027358,3]
[341179827,1730548245320,-315.62,0.00027358,3]
[341179828,1730548245330,-151.0,0.00027358,7]
[341179829,1730548245340,-360.243339,0.00027358,7]
[341179830,1730548245351,-360.243339,0.00027358,7]
[341179831,1730548245362,-158.535963,0.00027358,7]
[341179833,1730548245373,-158.535963,0.00027358,7]
[341179834,1730548245383,-151.0,0.00027397,2]
[341179835,1730548245393,-151.0,0.00027397,2]
[341179836,1730548245403,-171.999864,0.00027397,2]
[341179837,1730548245413,-163.687644,0.00027641,2]
[341179838,1730548245426,-6558.4177628,0.00027801,2]
[341179839,1730548245440,-206.43505164,0.00027801,2]
[341179840,1730548245451,-329.48560075,0.00027806,2]
[341179841,1730548245461,-345.747877,0.00027905,7]
[341179842,1730548245471,-345.747877,0.00027905,7]
[341179843,1730548245481,-151.0,0.00027905,7]
[341179844,1730548245491,-151.0,0.00027905,7]
[341179845,1730548245500,-420.0,0.00028009,2]
[341179846,1730548245510,-151.0,0.00028134,7]
[341179847,1730548245519,-151.0,0.00028134,7]
[341179848,1730548245530,-151.0,0.00028134,7]
[341179849,1730548245540,-406.921018,0.00028134,7]
[341179850,1730548245550,-406.921018,0.00028134,7]
[341179851,1730548245561,-151.0,0.00028134,3]
[341179852,1730548245571,-6764.85281444,0.00028145,2]
[341179853,1730548245582,-151.0,0.00028239,7]
[341179854,1730548245593,-360.243339,0.00028239,7]
[341179855,1730548245602,-360.243339,0.00028239,7]
[341179856,1730548245612,-158.535963,0.00028239,7]
[341179857,1730548245622,-158.535963,0.00028239,7]
[341179858,1730548245633,-6764.85281444,0.00028323,2]
[341179859,1730548245643,-420.0,0.00028465,2]
[341179860,1730548245653,-329.48560075,0.00028471,2]
[341179861,1730548245665,-2679.35424547,0.00028551,2]
[341179877,1730548246624,-232.07129395,0.00025878,2]
[341179880,1730548246634,-255.12067055,0.00025878,2]
[341179903,1730548246862,-244.87932945,0.00025878,2]
[341179905,1730548246872,-500.0,0.00025878,2]
[341179907,1730548246881,-500.0,0.00025878,2]
[341179909,1730548246891,-500.0,0.00025878,2]
[341179911,1730548246901,-500.0,0.00025878,2]
[341179914,1730548246912,-4085.49856898,0.00028551,2]
[341179916,1730548246921,-345.747877,0.00028732,7]
[341179918,1730548246932,-345.747877,0.00028732,7]
[341179919,1730548246941,-151.0,0.00028732,7]
[341179922,1730548246951,-151.0,0.00028732,7]
[341179924,1730548246961,-500.0,0.00028773,5]
[341179925,1730548246970,-194.30203911,0.000289,2]
[341179928,1730548246979,-715.94397153,0.00029,10]
[341179929,1730548246988,-329.48560075,0.00029135,2]
[341179931,1730548246997,-1500.0,0.00029747,5]
[341179933,1730548247007,-1500.0,0.00029747,5]
[341179935,1730548247017,-673.79557726,0.00029747,5]
[341179938,1730548247029,-329.48560075,0.000298,2]
[341179940,1730548247039,-500.0,0.00029873,5]
[341179942,1730548247049,-500.0,0.00029873,5]
[341179944,1730548247060,-500.0,0.00029873,5]
[341179946,1730548247069,-500.0,0.00029873,5]
[341179948,1730548247081,-501.06877509,0.00029873,5]
[341179950,1730548247091,-502.04258358,0.00029873,5]
[341179952,1730548247101,-29989.46570242,0.000299,2]
[341179955,1730548247113,-7115.62899351,0.000299,2]
[341179957,1730548247124,-3191.39570742,0.000299,2]
[341179966,1730548404420,167.618675,0.00013973,2]
[341179977,1730548890809,165.500128,0.00013973,2]
[341179978,1730548891002,165.500128,0.00021209,2]
[341179979,1730549158148,-180.135753,0.00022675,2]
[341179980,1730549158169,-858.3113436,0.0002279,2]
[341179981,1730549158191,-160.0,0.00023,2]
[341179982,1730549158212,-190.97222222,0.00023,2]
[341179983,1730549158233,-950.948607,0.0002337,2]
[341179984,1730549158380,-300.0,0.00023596,2]
[341179985,1730549158404,-300.0,0.00023596,2]
[341179986,1730549158425,-24900.0,0.00023597,2]
[341179987,1730549158446,-180.135753,0.00023706,2]
[341179988,1730549158467,-3000.0,0.0002408,2]
[341179989,1730549158489,-170.820406,0.00024259,2]
[341179990,1730549158510,-170.820406,0.00024326,2]
[341179991,1730549158532,-170.820406,0.00024392,2]
[341179992,1730549158556,-67.39336055,0.00024459,2]
[341179993,1730549244092,-103.42704545,0.00024459,2]
[341179994,1730549244113,-116.66214323,0.00024516,2]
[341179995,1730549251107,-711.37931977,0.00024516,2]
[341179996,1730549251130,-170.820406,0.00024525,2]
[341179997,1730549251150,-170.820406,0.00024592,2]
[341179998,1730549251171,-170.820406,0.00024658,2]
[341179999,1730549251192,-1116.6808122,0.00024668,2]
[341180000,1730549251217,-170.820406,0.00024725,2]
[341180001,1730549251237,-180.135753,0.00024736,2]
[341180002,1730549251258,-170.820406,0.00024791,2]
[341180003,1730549251277,-945.33547413,0.00024812,2]
[341180004,1730549251299,-170.820406,0.00024858,2]
[341180005,1730549251321,-384.2581199,0.00024921,2]
[341180006,1730549251341,-170.820406,0.00024925,2]
[341180007,1730549251361,-170.820406,0.00024991,2]
[341180008,1730549251383,-170.820406,0.00025058,2]
[341180009,1730549251404,-170.820406,0.00025124,2]
[341180010,1730549251424,-170.820406,0.00025191,2]
[341180011,1730549251444,-828.041463,0.00025201,2]
[341180012,1730549251468,-170.820406,0.00025257,2]
[341180013,1730549251488,-170.820406,0.00025324,2]
[341180014,1730549251508,-170.820406,0.0002539,2]
[341180015,1730549251530,-170.820406,0.00025457,2]
[341180016,1730549251556,-300.0,0.00025523,2]
[341180017,1730549251577,-170.820406,0.00025523,2]
[341180018,1730549251600,-180.135753,0.00025767,2]
[341180019,1730549251625,-828.041463,0.00025886,2]
[341180020,1730549251646,-990.56858213,0.00026197,2]
[341180021,1730549251668,-420.0,0.00028075,2]
[341180022,1730549251689,-165.500128,0.00028445,2]
[341180023,1730549251712,-160.64229731,0.00028553,2]
[341180024,1730549251732,-540.4636822,0.00028553,2]
[341180025,1730549251754,-500.0,0.00028553,2]
[341180026,1730549251774,-500.0,0.00028553,2]
[341180027,1730549251795,-370.88567863,0.00028553,2]
[341180028,1730549251816,-500.0,0.00028553,2]
[341180029,1730549251836,-406.35198642,0.00028553,2]
[341180030,1730549251856,-427.64213475,0.00028553,2]
[341180031,1730549251877,-500.0,0.00028553,2]
[341180032,1730549251899,-500.0,0.00028553,2]
[341180033,1730549251920,-500.0,0.00028553,2]
[341180034,1730549251940,-500.0,0.00028553,2]
[341180035,1730549251962,-500.0,0.00028553,2]
[341180036,1730549251983,-500.0,0.00028553,2]
[341180037,1730549252004,-500.0,0.00028553,2]
[341180038,1730549252025,-500.0,0.00028553,2]
[341180039,1730549252045,-500.0,0.00028553,2]
[341180040,1730549252066,-500.0,0.00028553,2]
[341180041,1730549252087,-500.0,0.00028553,2]
[341180042,1730549252108,-209.31871899,0.00028553,2]
[341180043,1730549252129,-500.0,0.00028553,2]
[341180044,1730549252150,-500.0,0.00028553,2]
[341180045,1730549252171,-500.0,0.00028553,2]
[341180046,1730549252192,-611.36350418,0.00028553,2]
[341180047,1730549252213,-500.0,0.00028553,2]
[341180048,1730549252234,-500.0,0.00028553,2]
[341180049,1730549252256,-500.0,0.00028553,2]
[341180050,1730549252279,-500.0,0.00028553,2]
[341180051,1730549252301,-221.11763686,0.00028553,2]
[341180052,1730549252321,-500.0,0.00028553,2]
[341180053,1730549252343,-500.0,0.00028553,2]
[341180054,1730549252363,-500.0,0.00028553,2]
[341180055,1730549252384,-500.0,0.00028553,2]
[341180056,1730549252405,-500.0,0.00028553,2]
[341180057,1730549252428,-500.0,0.00028553,2]
[341180058,1730549252448,-500.0,0.00028553,2]
[341180059,1730549252472,-500.0,0.00028553,2]
[341180060,1730549252493,-500.0,0.00028553,2]
[341180061,1730549252514,-500.0,0.00028553,2]
[341180062,1730549252536,-500.0,0.00028553,2]
[341180063,1730549252562,-500.0,0.00028553,2]
[341180064,1730549252584,-500.0,0.00028553,2]
[341180065,1730549252605,-500.0,0.00028553,2]
[341180066,1730549252628,-500.0,0.00028553,2]
[341180067,1730549252650,-68.99089034,0.00028553,2]
[341180068,1730549253150,-186.84223658,0.00028553,2]
[341180164,1730549441397,-1117.6508188,0.00028335,2]
[341180165,1730549441406,-283.3692159,0.00029152,2]
[341180166,1730549441416,-198.56668575,0.00029252,2]
[341180167,1730549441426,-500.0,0.00029432,5]
[341180168,1730549441436,-283.36921588,0.00029476,2]
[341180169,1730549441447,-1233.56609098,0.00029751,30]
[341180171,1730549443930,-2198.86719505,0.00029751,30]
[341180172,1730549443940,-1411.85775352,0.00029799,2]
[341180173,1730549443949,-67.09263591,0.00029799,2]
[341180175,1730549446746,-20.76024851,0.00029799,2]
[341180176,1730549446839,-24.4543543,0.00029799,2]
[341180177,1730549446854,-171.06197716,0.00029799,2]
[341180178,1730549446864,-300.0,0.00029872,2]
[341180179,1730549446874,-500.0,0.00029873,5]
[341180180,1730549446883,-500.0,0.00029898,2]
[341180181,1730549446893,-500.0,0.00029898,2]
[341180182,1730549446902,-179.04038935,0.00029898,2]
[341180183,1730549446911,-500.0,0.00029898,2]
[341180184,1730549446921,-191.23529299,0.00029898,2]
[341180185,1730549446931,-500.0,0.00029898,2]
[341180186,1730549446940,-500.0,0.00029898,2]
[341180187,1730549446949,-500.0,0.00029898,2]
[341180188,1730549446959,-500.0,0.00029898,2]
[341180189,1730549446968,-500.0,0.00029898,2]
[341180190,1730549446978,-500.0,0.00029898,2]
[341180191,1730549446988,-278.43636852,0.00029898,2]
[341180192,1730549446997,-500.0,0.00029898,2]
[341180193,1730549447007,-500.0,0.00029898,2]
[341180194,1730549447017,-500.0,0.00029898,2]
[341180195,1730549447027,-500.0,0.00029898,2]
[341180196,1730549447036,-500.0,0.00029898,2]
[341180197,1730549447045,-500.0,0.00029898,2]
[341180198,1730549447054,-500.0,0.00029898,2]
[341180199,1730549447063,-500.0,0.00029898,2]
[341180200,1730549447073,-500.0,0.00029898,2]
[341180201,1730549447082,-500.0,0.00029898,2]
[341180202,1730549447091,-500.0,0.00029898,2]
[341180203,1730549447101,-500.0,0.00029898,2]
[341180204,1730549447111,-500.0,0.00029898,2]
[341180205,1730549447120,-500.0,0.00029898,2]
[341180206,1730549447129,-500.0,0.00029898,2]
[341180207,1730549447139,-628.03833856,0.00029898,2]
[341180208,1730549447149,-500.0,0.00029898,2]
[341180209,1730549447158,-500.0,0.00029898,2]
[341180210,1730549447168,-500.0,0.00029898,2]
[341180211,1730549447178,-500.0,0.00029898,2]
[341180212,1730549447188,-500.0,0.00029898,2]
[341180213,1730549447197,-500.0,0.00029898,2]
[341180214,1730549447207,-500.0,0.00029898,2]
[341180215,1730549447217,-500.0,0.00029898,2]
[341180216,1730549447226,-500.0,0.00029898,2]
[341180217,1730549447236,-500.0,0.00029898,2]
[341180218,1730549447246,-500.0,0.00029898,2]
[341180219,1730549447256,-500.0,0.00029898,2]
[341180220,1730549447266,-500.0,0.00029898,2]
[341180221,1730549447275,-500.0,0.00029898,2]
[341180222,1730549447289,-438.22721513,0.00029898,2]
[341180223,1730549447299,-500.0,0.00029898,2]
[341180224,1730549447308,-500.0,0.00029898,2]
[341180225,1730549447317,-500.0,0.00029898,2]
[341180226,1730549447327,-500.0,0.00029898,2]
[341180227,1730549447336,-500.0,0.00029898,2]
[341180228,1730549447345,-500.0,0.00029898,2]
[341180229,1730549447355,-500.0,0.00029898,2]
[341180230,1730549447365,-500.0,0.00029898,2]
[341180231,1730549447374,-500.0,0.00029898,2]
[341180232,1730549447383,-500.0,0.00029898,2]
[341180233,1730549447392,-500.0,0.00029898,2]
[341180234,1730549447402,-500.0,0.00029898,2]
[341180235,1730549447411,-500.0,0.00029898,2]
[341180236,1730549447420,-500.0,0.00029898,2]
[341180237,1730549447430,-500.0,0.00029898,2]
[341180238,1730549447439,-394.02843437,0.00029898,2]
[341180239,1730549447448,-500.0,0.00029898,2]
[341180240,1730549447458,-500.0,0.00029898,2]
[341180241,1730549447467,-500.0,0.00029898,2]
[341180242,1730549447477,-660.37905475,0.00029899,2]
[341180243,1730549447486,-216.42137564,0.00029899,2]
[341180244,1730549447495,-162.54763014,0.00029899,2]
[341180245,1730549447504,-226.29327322,0.00029899,2]
[341180246,1730549447514,-626.92569589,0.00029899,2]
[341180247,1730549447523,-2494.41805311,0.00029899,2]
[341180248,1730549447533,-6000.000001,0.00029899,2]
[341180249,1730549447542,-18112.13009998,0.000299,2]
[341180250,1730549464086,190.97222222,0.00024516,2]
[341180251,1730549525725,190.97222222,0.00024213,2]
[341180252,1730549537842,179.415605,0.00013973,2]
[341180253,1730549538045,179.415605,0.00020447,2]
[341180258,1730549674796,1778.23842283,0.00033513,120]
[341180259,1730550024635,173.378886,0.00013973,2]
[341180268,1730550409141,-173.126924,0.00025466,2]
[341180269,1730550409162,-38.37590295,0.0002566,2]
[341180270,1730550443090,-300.0,0.0002566,2]
[341180271,1730550443228,-300.0,0.0002566,2]
[341180272,1730550443250,-21055.90695785,0.00025661,2]
[341180276,1730550522799,2668.25223908,0.00033532,30]
[341180280,1730550546075,-241.77072217,0.00023,2]
[341180281,1730550546097,-300.0,0.00024999,2]
[341180282,1730550546118,-258.0,0.00024999,2]
[341180283,1730550546140,-7935.26102383,0.00025,2]
[341180284,1730550552126,-29167.91791176,0.00025,2]
[341180285,1730550553142,-9704.41059949,0.00025,2]
[341180289,1730550567116,-1055.52615868,0.00025,2]
[341180290,1730550567137,-508.90891178,0.00025,2]
[341180291,1730550567157,-346.00340192,0.00025,2]
[341180292,1730550567178,-826.14609149,0.00025,2]
[341180293,1730550567199,-428.34,0.00025,2]
[341180294,1730550567236,-35321.85646651,0.0002509,2]
[341180295,1730550567261,-3844.09304215,0.00025661,2]
[341180296,1730550567284,-592.418753,0.00025893,2]
[341180297,1730550567304,-2920.0,0.00025913,2]
[341180298,1730550567325,-162.887082,0.00025942,2]
[341180299,1730550567345,-527.27883075,0.00026,2]
[341180300,1730550573101,-158.223878,0.00026432,2]
[341180301,1730550573124,-179.415605,0.00026921,2]
[341180302,1730550573145,-338.0,0.00027,2]
[341180303,1730550573167,-163.0,0.00027,2]
[341180304,1730550573190,-165.0,0.00027,2]
[341180305,1730550578053,160.529751,0.00013973,2]
[341180306,1730550578266,160.529751,0.00020807,2]
[341180309,1730550585271,173.126924,0.00026541,2]
[341180315,1730550632067,-160.875,0.00027496,16]
[341180316,1730550632077,-160.529751,0.00027641,2]
[341180317,1730550632086,-338.0,0.00027671,2]
[341180318,1730550632096,-10889.59261936,0.0002799,2]
[341180319,1730550632108,-1142.05,0.0002799,2]
[341180324,1730550638236,-520.1248899,0.0002799,2]
[341180325,1730550638248,-2996.42003404,0.0002799,2]
[341180331,1730550639935,-2974.17806861,0.0002799,2]
[341180335,1730550643014,-7919.16397944,0.0002799,2]
[341180336,1730550643023,-194.30203911,0.00028452,2]
[341180337,1730550643033,-338.0,0.00028767,2]
[341180338,1730550643042,-163.0,0.00028767,2]
[341180339,1730550643052,-165.0,0.00028767,2]
[341180340,1730550643062,-2630.11,0.00029,5]
[341180341,1730550643072,-500.0,0.00029773,5]
[341180342,1730550643082,-310.08821223,0.00029792,2]
[341180343,1730550643091,-470.63837546,0.00029792,2]
[341180344,1730550643101,-500.0,0.00029792,2]
[341180345,1730550643111,-500.0,0.00029792,2]
[341180346,1730550643120,-500.0,0.00029792,2]
[341180347,1730550643130,-500.0,0.00029792,2]
[341180348,1730550643139,-500.0,0.00029792,2]
[341180349,1730550643149,-500.0,0.00029792,2]
[341180350,1730550643160,-500.0,0.00029792,2]
[341180351,1730550643169,-500.0,0.00029792,2]
[341180352,1730550643179,-500.0,0.00029792,2]
[341180353,1730550643188,-500.0,0.00029792,2]
[341180354,1730550643198,-500.0,0.00029792,2]
[341180355,1730550643210,-500.0,0.00029792,2]
[341180356,1730550643220,-500.0,0.00029792,2]
[341180357,1730550643229,-500.0,0.00029792,2]
[341180358,1730550643239,-500.0,0.00029792,2]
[341180359,1730550643249,-500.0,0.00029792,2]
[341180360,1730550643362,-500.0,0.00029792,2]
[341180361,1730550643373,-378.20455279,0.00029792,2]
[341180362,1730550643383,-500.0,0.00029792,2]
[341180363,1730550643392,-500.0,0.00029792,2]
[341180364,1730550643401,-500.0,0.00029792,2]
[341180365,1730550643411,-500.0,0.00029792,2]
[341180366,1730550643420,-500.0,0.00029792,2]
[341180367,1730550643430,-500.0,0.00029792,2]
[341180368,1730550643439,-500.0,0.00029792,2]
[341180369,1730550643448,-500.0,0.00029792,2]
[341180370,1730550643458,-500.0,0.00029792,2]
[341180371,1730550643469,-500.0,0.00029792,2]
[341180372,1730550643480,-500.0,0.00029792,2]
[341180373,1730550643490,-500.0,0.00029792,2]
[341180374,1730550643500,-500.0,0.00029792,2]
[341180375,1730550643511,-500.0,0.00029792,2]
[341180376,1730550643521,-500.0,0.00029792,2]
[341180377,1730550643531,-500.0,0.00029792,2]
[341180378,1730550643541,-500.0,0.00029792,2]
[341180379,1730550643552,-500.0,0.00029792,2]
[341180380,1730550643562,-500.0,0.00029792,2]
[341180381,1730550643571,-500.0,0.00029792,2]
[341180382,1730550643581,-500.0,0.00029792,2]
[341180383,1730550643590,-500.0,0.00029792,2]
[341180384,1730550643600,-500.0,0.00029792,2]
[341180385,1730550643609,-500.0,0.00029792,2]
[341180386,1730550643618,-500.0,0.00029792,2]
[341180387,1730550643627,-500.0,0.00029792,2]
[341180388,1730550643637,-365.46702818,0.00029792,2]
[341180389,1730550643647,-500.0,0.00029792,2]
[341180390,1730550643657,-500.0,0.00029792,2]
[341180391,1730550643667,-500.0,0.00029792,2]
[341180392,1730550643677,-500.0,0.00029792,2]
[341180393,1730550643687,-500.0,0.00029792,2]
[341180394,1730550643697,-500.0,0.00029792,2]
[341180395,1730550643706,-500.0,0.00029792,2]
[341180396,1730550643716,-500.0,0.00029792,2]
[341180397,1730550643726,-500.0,0.00029792,2]
[341180398,1730550643735,-500.0,0.00029792,2]
[341180399,1730550643745,-627.80383386,0.00029792,2]
[341180400,1730550643756,-500.0,0.00029792,2]
[341180401,1730550643769,-500.0,0.00029792,2]
[341180402,1730550643779,-500.0,0.00029792,2]
[341180403,1730550643789,-500.0,0.00029792,2]
[341180404,1730550643800,-500.0,0.00029792,2]
[341180405,1730550643810,-500.0,0.00029792,2]
[341180406,1730550643820,-500.0,0.00029792,2]
[341180407,1730550643831,-348.31105252,0.00029792,2]
[341180408,1730550643841,-500.0,0.00029792,2]
[341180409,1730550643851,-500.0,0.00029792,2]
[341180410,1730550643861,-500.0,0.00029792,2]
[341180411,1730550643871,-500.0,0.00029792,2]
[341180412,1730550643880,-699.33337602,0.00029793,2]
[341180413,1730550643890,-151.0,0.00029793,7]
[341180414,1730550643900,-156.293085,0.00029793,7]
[341180415,1730550643910,-151.0,0.00029793,7]
[341180416,1730550643920,-151.0,0.00029793,7]
[341180417,1730550643930,-747.29995358,0.00029799,2]
[341180418,1730550643940,-747.29995358,0.00029799,2]
[341180419,1730550643949,-747.29995358,0.000298,2]
[341180420,1730550643959,-747.29995358,0.000298,2]
[341180421,1730550643969,-12997.22212247,0.000298,2]
[341180422,1730550643979,-747.29995358,0.000298,2]
[341180423,1730550643988,-310.28117642,0.00029899,2]
[341180424,1730550643998,-6079.79647438,0.00029899,2]
[341180425,1730550644007,-151.0,0.00029899,7]
[341180426,1730550644019,-151.0,0.00029899,7]
[341180427,1730550644029,-151.0,0.00029899,7]
[341180428,1730550644040,-73030.48388426,0.000299,2]
[341180429,1730550644053,-869.94591213,0.000299,2]
[341180430,1730550644064,-330.29329238,0.000299,2]
[341180431,1730550644075,-2495.76253536,0.000299,2]
[341180444,1730550646026,-908.38597521,0.000299,2]
[341180445,1730550646044,-137043.4352434,0.000299,2]
[341180446,1730550646798,201.0,0.00023,2]
[341180448,1730551142960,3000.0,0.00033526,119]
[341180450,1730551203233,187.566538,0.00013973,2]
[341180451,1730551203596,187.566538,0.00020447,2]